[Event "Titled Tuesday Blitz April 11 Early 2023"]
[White "Yosha_Iglesias"]
[Black "Tarnowska, Aleksandra"]
[BlackFideId "1180967"]
[WhiteElo "2456"]
[BlackElo "1776"]
[Result "1-0"]
[Round "02"]
[TimeControl "180+2"]
[Date "2023.04.11"]
[WhiteClock "0:00:13"]
[BlackClock "0:00:01"]

1. d4 {[%clk 0:03:00]}  d5 {[%clk 0:02:59]} 2. Nf3 {[%clk 0:03:01]}  Nf6 {[%clk 0:02:57]} 3. e3 {[%clk 0:03:01]}  e6 {[%clk 0:02:50]} 4. Bd3 {[%clk 0:03:01]}  b6 {[%clk 0:02:47]} 5. O-O {[%clk 0:03:00]}  Bb7 {[%clk 0:02:47]} 6. Nbd2 {[%clk 0:02:58]}  Nbd7 {[%clk 0:02:46]} 7. Ne5 {[%clk 0:02:48]}  c5 {[%clk 0:02:44]} 8. c3 {[%clk 0:02:47]}  Bd6 {[%clk 0:02:41]} 9. f4 {[%clk 0:02:47]}  O-O {[%clk 0:02:31]} 10. Qf3 {[%clk 0:02:46]}  c4 {[%clk 0:02:14]} 11. Bc2 {[%clk 0:02:36]}  b5 {[%clk 0:02:14]} 12. g4 {[%clk 0:02:35]}  b4 {[%clk 0:02:07]} 13. g5 {[%clk 0:02:35]}  Ne8 {[%clk 0:02:06]} 14. Bxh7+ {[%clk 0:02:32]}  Kxh7 {[%clk 0:02:05]} 15. Qh5+ {[%clk 0:02:32]}  Kg8 {[%clk 0:01:59]} 16. Rf3 {[%clk 0:02:31]}  Ndf6 {[%clk 0:01:43]} 17. gxf6 {[%clk 0:02:03]}  Nxf6 {[%clk 0:01:44]} 18. Qh3 {[%clk 0:01:26]}  Nh7 {[%clk 0:01:32]} 19. Rg3 {[%clk 0:01:19]}  Qf6 {[%clk 0:01:30]} 20. Ndf3 {[%clk 0:01:18]}  g6 {[%clk 0:00:51]} 21. Bd2 {[%clk 0:00:44]}  Rfd8 {[%clk 0:00:35]} 22. Kh1 {[%clk 0:00:38]}  Qg7 {[%clk 0:00:26]} 23. Rag1 {[%clk 0:00:37]}  Nf8 {[%clk 0:00:24]} 24. Ng4 {[%clk 0:00:28]}  Nd7 {[%clk 0:00:20]} 25. Ng5 {[%clk 0:00:25]}  Kf8 {[%clk 0:00:19]} 26. Nh6 {[%clk 0:00:24]}  Ke7 {[%clk 0:00:19]} 27. Ngxf7 {[%clk 0:00:21]}  Rf8 {[%clk 0:00:14]} 28. Rxg6 {[%clk 0:00:20]}  Qxf7 {[%clk 0:00:01]} 29. Nxf7 {[%clk 0:00:19]}  Rxf7 {[%clk 0:00:02]} 30. Rg7 {[%clk 0:00:18]}  Rf8 {[%clk 0:00:02]} 31. Qh4+ {[%clk 0:00:17]}  Ke8 {[%clk 0:00:02]} 32. Be1 {[%clk 0:00:13]}  Be7 {[%clk 0:00:01]} 33. Qh5 {[%clk 0:00:13]}  Nf6 {[%clk 0:00:01]} 34. Qg6 {[%clk 0:00:13]} 1-0


[Site "https://www.chess.com"]

[Event "Titled Tuesday Blitz April 11 Early 2023"]
[White "Sandro970"]
[Black "Cramling Bellon, Anna"]
[BlackFideId "32009232"]
[WhiteElo "2455"]
[BlackElo "1972"]
[Result "1-0"]
[Round "02"]
[TimeControl "180+2"]
[Date "2023.04.11"]
[WhiteClock "0:00:22"]
[BlackClock "0:00:02"]

1. e4 {[%clk 0:02:59]}  c5 {[%clk 0:02:59]} 2. Nc3 {[%clk 0:02:58]}  Nc6 {[%clk 0:02:56]} 3. f4 {[%clk 0:02:57]}  g6 {[%clk 0:02:56]} 4. Nf3 {[%clk 0:02:58]}  Bg7 {[%clk 0:02:54]} 5. d3 {[%clk 0:02:58]}  e6 {[%clk 0:02:53]} 6. g3 {[%clk 0:02:58]}  Nge7 {[%clk 0:02:53]} 7. Bg2 {[%clk 0:02:59]}  d5 {[%clk 0:02:53]} 8. O-O {[%clk 0:02:57]}  O-O {[%clk 0:02:53]} 9. e5 {[%clk 0:02:53]}  Nf5 {[%clk 0:02:46]} 10. Qe1 {[%clk 0:02:44]}  Ncd4 {[%clk 0:02:44]} 11. Qf2 {[%clk 0:02:37]}  Nxf3+ {[%clk 0:02:34]} 12. Bxf3 {[%clk 0:02:36]}  Nd4 {[%clk 0:02:35]} 13. Bg2 {[%clk 0:02:34]}  f6 {[%clk 0:02:32]} 14. exf6 {[%clk 0:02:31]}  Bxf6 {[%clk 0:02:33]} 15. Be3 {[%clk 0:02:29]}  Bd7 {[%clk 0:02:12]} 16. Kh1 {[%clk 0:02:27]}  Rc8 {[%clk 0:02:08]} 17. Rae1 {[%clk 0:02:25]}  b6 {[%clk 0:02:05]} 18. Bh3 {[%clk 0:02:16]}  Nf5 {[%clk 0:01:50]} 19. Bc1 {[%clk 0:02:13]}  d4 {[%clk 0:01:46]} 20. Ne4 {[%clk 0:02:12]}  Bc6 {[%clk 0:01:46]} 21. Bg2 {[%clk 0:02:13]}  Bxe4 {[%clk 0:01:36]} 22. dxe4 {[%clk 0:02:10]}  Ne3 {[%clk 0:01:37]} 23. Bxe3 {[%clk 0:02:05]}  dxe3 {[%clk 0:01:37]} 24. Qxe3 {[%clk 0:02:04]}  Bxb2 {[%clk 0:01:37]} 25. c3 {[%clk 0:02:02]}  c4 {[%clk 0:01:20]} 26. Rf2 {[%clk 0:01:48]}  Ba3 {[%clk 0:01:11]} 27. Rd2 {[%clk 0:01:48]}  Qe7 {[%clk 0:01:04]} 28. Red1 {[%clk 0:01:45]}  Rfd8 {[%clk 0:01:03]} 29. e5 {[%clk 0:01:43]}  Bc5 {[%clk 0:00:59]} 30. Qe4 {[%clk 0:01:35]}  b5 {[%clk 0:00:46]} 31. Qb7 {[%clk 0:01:24]}  Rb8 {[%clk 0:00:26]} 32. Qa6 {[%clk 0:00:44]}  Rxd2 {[%clk 0:00:22]} 33. Rxd2 {[%clk 0:00:43]}  Rd8 {[%clk 0:00:22]} 34. Rxd8+ {[%clk 0:00:38]}  Qxd8 {[%clk 0:00:22]} 35. Qxe6+ {[%clk 0:00:39]}  Kg7 {[%clk 0:00:22]} 36. Bd5 {[%clk 0:00:36]}  Qa5 {[%clk 0:00:15]} 37. Qf7+ {[%clk 0:00:26]}  Kh6 {[%clk 0:00:14]} 38. g4 {[%clk 0:00:24]}  g5 {[%clk 0:00:02]} 39. Qf6# {[%clk 0:00:22]} 1-0


[Site "https://www.chess.com"]

[Event "Titled Tuesday Blitz April 11 Early 2023"]
[White "mohsengabr2002"]
[Black "MANOJ_MISHRA123"]
[WhiteElo "2454"]
[BlackElo "2094"]
[Result "1/2-1/2"]
[Round "02"]
[TimeControl "180+2"]
[Date "2023.04.11"]
[WhiteClock "0:00:42"]
[BlackClock "0:00:03"]

1. e4 {[%clk 0:02:59]}  d6 {[%clk 0:02:59]} 2. d4 {[%clk 0:02:57]}  Nf6 {[%clk 0:02:59]} 3. Nc3 {[%clk 0:02:57]}  Nbd7 {[%clk 0:02:59]} 4. f3 {[%clk 0:02:55]}  e5 {[%clk 0:02:59]} 5. Nge2 {[%clk 0:02:55]}  Be7 {[%clk 0:02:57]} 6. Be3 {[%clk 0:02:55]}  c6 {[%clk 0:02:57]} 7. d5 {[%clk 0:02:54]}  Qc7 {[%clk 0:02:56]} 8. g4 {[%clk 0:02:54]}  h6 {[%clk 0:02:51]} 9. h4 {[%clk 0:02:52]}  Nc5 {[%clk 0:02:44]} 10. Rg1 {[%clk 0:02:49]}  Qb6 {[%clk 0:02:26]} 11. Qd2 {[%clk 0:02:41]}  Nxg4 {[%clk 0:02:10]} 12. fxg4 {[%clk 0:02:38]}  Bxh4+ {[%clk 0:02:10]} 13. Kd1 {[%clk 0:02:37]}  Qxb2 {[%clk 0:01:24]} 14. Rb1 {[%clk 0:02:36]}  Qa3 {[%clk 0:01:24]} 15. dxc6 {[%clk 0:02:32]}  O-O {[%clk 0:01:22]} 16. g5 {[%clk 0:02:27]}  h5 {[%clk 0:01:15]} 17. Rh1 {[%clk 0:02:18]}  f5 {[%clk 0:00:54]} 18. Rxh4 {[%clk 0:02:14]}  f4 {[%clk 0:00:54]} 19. Bxc5 {[%clk 0:02:12]}  Qxc5 {[%clk 0:00:44]} 20. Qd5+ {[%clk 0:02:11]}  Qxd5+ {[%clk 0:00:44]} 21. Nxd5 {[%clk 0:02:06]}  bxc6 {[%clk 0:00:42]} 22. Ne7+ {[%clk 0:02:01]}  Kf7 {[%clk 0:00:42]} 23. Nxc8 {[%clk 0:02:01]}  Rfxc8 {[%clk 0:00:39]} 24. Rxh5 {[%clk 0:01:59]}  Kg6 {[%clk 0:00:39]} 25. Rh2 {[%clk 0:01:58]}  Rh8 {[%clk 0:00:32]} 26. Rxh8 {[%clk 0:01:50]}  Rxh8 {[%clk 0:00:32]} 27. Rb7 {[%clk 0:01:47]}  f3 {[%clk 0:00:27]} 28. Ng3 {[%clk 0:01:45]}  Kxg5 {[%clk 0:00:19]} 29. Rxg7+ {[%clk 0:01:42]}  Kf4 {[%clk 0:00:19]} 30. Kd2 {[%clk 0:01:31]}  Rh2+ {[%clk 0:00:16]} 31. Kd3 {[%clk 0:01:31]}  d5 {[%clk 0:00:16]} 32. Rf7+ {[%clk 0:01:26]}  Kxg3 {[%clk 0:00:12]} 33. exd5 {[%clk 0:01:22]}  cxd5 {[%clk 0:00:12]} 34. Kc3 {[%clk 0:01:11]}  Kf2 {[%clk 0:00:12]} 35. Bb5 {[%clk 0:01:10]}  Ke3 {[%clk 0:00:09]} 36. Bc6 {[%clk 0:01:09]}  d4+ {[%clk 0:00:08]} 37. Kb3 {[%clk 0:01:08]}  f2 {[%clk 0:00:07]} 38. Bb5 {[%clk 0:01:05]}  Rh3 {[%clk 0:00:06]} 39. c3 {[%clk 0:01:02]}  e4 {[%clk 0:00:06]} 40. cxd4 {[%clk 0:00:55]}  Kd2+ {[%clk 0:00:06]} 41. Kb4 {[%clk 0:00:52]}  Ke1 {[%clk 0:00:05]} 42. d5 {[%clk 0:00:51]}  e3 {[%clk 0:00:05]} 43. d6 {[%clk 0:00:50]}  Rh6 {[%clk 0:00:04]} 44. Kc5 {[%clk 0:00:49]}  e2 {[%clk 0:00:02]} 45. Bxe2 {[%clk 0:00:47]}  Kxe2 {[%clk 0:00:02]} 46. d7 {[%clk 0:00:47]}  Rh8 {[%clk 0:00:01]} 47. Kd6 {[%clk 0:00:46]}  f1=Q {[%clk 0:00:01]} 48. Rxf1 {[%clk 0:00:46]}  Kxf1 {[%clk 0:00:01]} 49. Kc7 {[%clk 0:00:46]}  Ke2 {[%clk 0:00:01]} 50. d8=Q {[%clk 0:00:45]}  Rxd8 {[%clk 0:00:02]} 51. Kxd8 {[%clk 0:00:46]}  a5 {[%clk 0:00:02]} 52. Kc7 {[%clk 0:00:47]}  a4 {[%clk 0:00:02]} 53. Kb6 {[%clk 0:00:42]}  Kd3 {[%clk 0:00:02]} 54. Kb5 {[%clk 0:00:43]}  Kc3 {[%clk 0:00:01]} 55. Kxa4 {[%clk 0:00:43]}  Kc4 {[%clk 0:00:02]} 56. Ka5 {[%clk 0:00:43]}  Kc5 {[%clk 0:00:02]} 57. Ka6 {[%clk 0:00:43]}  Kc6 {[%clk 0:00:02]} 58. a4 {[%clk 0:00:42]}  Kc7 {[%clk 0:00:02]} 59. Ka7 {[%clk 0:00:43]}  Kc8 {[%clk 0:00:02]} 60. a5 {[%clk 0:00:42]}  Kc7 {[%clk 0:00:02]} 61. Ka8 {[%clk 0:00:41]}  Kc8 {[%clk 0:00:02]} 62. Ka7 {[%clk 0:00:41]}  Kc7 {[%clk 0:00:02]} 63. Ka6 {[%clk 0:00:39]}  Kb8 {[%clk 0:00:02]} 64. Kb6 {[%clk 0:00:39]}  Ka8 {[%clk 0:00:03]} 65. a6 {[%clk 0:00:40]}  Kb8 {[%clk 0:00:03]} 66. a7+ {[%clk 0:00:41]}  Ka8 {[%clk 0:00:03]} 67. Ka6 {[%clk 0:00:42]} 1/2-1/2


[Site "https://www.chess.com"]

[Event "Titled Tuesday Blitz April 11 Early 2023"]
[White "Adelman, Charles"]
[Black "Necula, Iulian"]
[WhiteFideId "2003597"]
[BlackFideId "1232380"]
[WhiteElo "2451"]
[BlackElo "1790"]
[Result "0-1"]
[Round "02"]
[TimeControl "180+2"]
[Date "2023.04.11"]
[WhiteClock "0:01:32"]
[BlackClock "0:01:24"]

1. Nf3 {[%clk 0:03:00]}  d6 {[%clk 0:03:00]} 2. d4 {[%clk 0:03:00]}  f5 {[%clk 0:03:01]} 3. g3 {[%clk 0:02:56]}  Nf6 {[%clk 0:03:01]} 4. Bg2 {[%clk 0:02:56]}  g6 {[%clk 0:03:01]} 5. O-O {[%clk 0:02:56]}  Bg7 {[%clk 0:03:02]} 6. b3 {[%clk 0:02:56]}  O-O {[%clk 0:03:03]} 7. Bb2 {[%clk 0:02:57]}  Nc6 {[%clk 0:03:02]} 8. Nbd2 {[%clk 0:02:57]}  Qe8 {[%clk 0:03:01]} 9. Re1 {[%clk 0:02:53]}  Ne4 {[%clk 0:02:55]} 10. c4 {[%clk 0:02:47]}  e5 {[%clk 0:02:50]} 11. dxe5 {[%clk 0:02:46]}  Nxe5 {[%clk 0:02:48]} 12. Nxe5 {[%clk 0:02:42]}  Bxe5 {[%clk 0:02:44]} 13. Bxe5 {[%clk 0:02:41]}  Qxe5 {[%clk 0:02:44]} 14. Nxe4 {[%clk 0:02:39]}  fxe4 {[%clk 0:02:44]} 15. Qd5+ {[%clk 0:02:33]}  Qxd5 {[%clk 0:02:43]} 16. cxd5 {[%clk 0:02:33]}  Bf5 {[%clk 0:02:32]} 17. Rac1 {[%clk 0:02:30]}  Rac8 {[%clk 0:02:32]} 18. e3 {[%clk 0:02:28]}  c5 {[%clk 0:02:28]} 19. dxc6 {[%clk 0:02:14]}  bxc6 {[%clk 0:02:28]} 20. Red1 {[%clk 0:02:12]}  Rf6 {[%clk 0:02:24]} 21. Rd4 {[%clk 0:02:11]}  c5 {[%clk 0:02:13]} 22. Ra4 {[%clk 0:02:11]}  Rc7 {[%clk 0:02:12]} 23. Bxe4 {[%clk 0:02:05]}  Bxe4 {[%clk 0:02:10]} 24. Rxe4 {[%clk 0:02:05]}  d5 {[%clk 0:02:08]} 25. Ra4 {[%clk 0:02:00]}  Rfc6 {[%clk 0:01:58]} 26. Kf1 {[%clk 0:01:57]}  Kf7 {[%clk 0:01:57]} 27. Ke2 {[%clk 0:01:56]}  Ke6 {[%clk 0:01:58]} 28. Kd3 {[%clk 0:01:55]}  Ke5 {[%clk 0:01:57]} 29. Rh4 {[%clk 0:01:50]}  h5 {[%clk 0:01:57]} 30. h3 {[%clk 0:01:46]}  Rh7 {[%clk 0:01:52]} 31. Rf4 {[%clk 0:01:44]}  g5 {[%clk 0:01:49]} 32. Rf8 {[%clk 0:01:43]}  Rd7 {[%clk 0:01:34]} 33. Rh8 {[%clk 0:01:41]}  c4+ {[%clk 0:01:29]} 34. bxc4 {[%clk 0:01:36]}  dxc4+ {[%clk 0:01:30]} 35. Kc2 {[%clk 0:01:34]}  c3 {[%clk 0:01:25]} 36. Rxh5 {[%clk 0:01:34]}  Rd2+ {[%clk 0:01:25]} 37. Kb3 {[%clk 0:01:33]}  Rb2+ {[%clk 0:01:24]} 38. Ka3 {[%clk 0:01:32]}  Ra6# {[%clk 0:01:24]} 0-1


[Site "https://www.chess.com"]

[Event "Titled Tuesday Blitz April 11 Early 2023"]
[White "Hartikainen, Jarmo"]
[Black "Zacurdajev, Dmitry"]
[WhiteFideId "503134"]
[BlackFideId "4196309"]
[WhiteElo "2067"]
[BlackElo "2189"]
[Result "0-1"]
[Round "02"]
[TimeControl "180+2"]
[Date "2023.04.11"]
[WhiteClock "0:00:32"]
[BlackClock "0:02:00"]

1. e4 {[%clk 0:03:00]}  c6 {[%clk 0:03:00]} 2. d4 {[%clk 0:03:00]}  d5 {[%clk 0:03:01]} 3. Nc3 {[%clk 0:03:00]}  dxe4 {[%clk 0:03:00]} 4. Nxe4 {[%clk 0:03:01]}  Nf6 {[%clk 0:03:01]} 5. Nxf6+ {[%clk 0:03:02]}  exf6 {[%clk 0:03:02]} 6. Bf4 {[%clk 0:03:02]}  Bd6 {[%clk 0:03:01]} 7. Qf3 {[%clk 0:03:02]}  O-O {[%clk 0:03:01]} 8. Bd3 {[%clk 0:03:01]}  Na6 {[%clk 0:02:57]} 9. c3 {[%clk 0:02:56]}  Nc7 {[%clk 0:02:55]} 10. Ne2 {[%clk 0:02:55]}  Nd5 {[%clk 0:02:51]} 11. Bd2 {[%clk 0:02:44]}  Re8 {[%clk 0:02:50]} 12. O-O-O {[%clk 0:02:41]}  b5 {[%clk 0:02:50]} 13. h4 {[%clk 0:02:38]}  a5 {[%clk 0:02:41]} 14. h5 {[%clk 0:02:37]}  a4 {[%clk 0:02:40]} 15. h6 {[%clk 0:02:34]}  g6 {[%clk 0:02:40]} 16. Ng3 {[%clk 0:02:16]}  a3 {[%clk 0:02:38]} 17. b3 {[%clk 0:02:15]}  b4 {[%clk 0:02:17]} 18. c4 {[%clk 0:02:13]}  Nc3 {[%clk 0:02:17]} 19. Bxc3 {[%clk 0:02:13]}  bxc3 {[%clk 0:02:18]} 20. Ne4 {[%clk 0:02:08]}  Be7 {[%clk 0:02:13]} 21. Nxc3 {[%clk 0:02:03]}  Qa5 {[%clk 0:02:11]} 22. Bc2 {[%clk 0:01:45]}  Bg4 {[%clk 0:02:04]} 23. Qxg4 {[%clk 0:01:06]}  Qxc3 {[%clk 0:02:03]} 24. Qf4 {[%clk 0:00:34]}  Qb2+ {[%clk 0:01:59]} 25. Kd2 {[%clk 0:00:32]}  Bb4+ {[%clk 0:02:00]} 0-1


[Site "https://www.chess.com"]

[Event "Titled Tuesday Blitz April 11 Early 2023"]
[White "Khandelwal, Ankush"]
[Black "Chincholimath, Halsagar"]
[WhiteFideId "413470"]
[BlackFideId "5022487"]
[WhiteElo "2263"]
[BlackElo "1737"]
[Result "1-0"]
[Round "02"]
[TimeControl "180+2"]
[Date "2023.04.11"]
[WhiteClock "0:00:10"]
[BlackClock "0:00:02"]

1. e4 {[%clk 0:03:00]}  e5 {[%clk 0:02:59]} 2. Nf3 {[%clk 0:02:57]}  Nc6 {[%clk 0:02:58]} 3. Bb5 {[%clk 0:02:53]}  a6 {[%clk 0:02:56]} 4. Ba4 {[%clk 0:02:53]}  Nf6 {[%clk 0:02:55]} 5. O-O {[%clk 0:02:52]}  Bc5 {[%clk 0:02:53]} 6. c3 {[%clk 0:02:48]}  d6 {[%clk 0:02:51]} 7. d4 {[%clk 0:02:39]}  exd4 {[%clk 0:02:51]} 8. cxd4 {[%clk 0:02:39]}  Ba7 {[%clk 0:02:48]} 9. d5 {[%clk 0:02:31]}  b5 {[%clk 0:02:47]} 10. dxc6 {[%clk 0:02:31]}  bxa4 {[%clk 0:02:47]} 11. Qxa4 {[%clk 0:02:32]}  O-O {[%clk 0:02:47]} 12. Nc3 {[%clk 0:02:29]}  h6 {[%clk 0:02:39]} 13. Bf4 {[%clk 0:02:19]}  Rb8 {[%clk 0:02:39]} 14. b3 {[%clk 0:02:14]}  Nh5 {[%clk 0:02:36]} 15. Bd2 {[%clk 0:02:03]}  Bg4 {[%clk 0:02:35]} 16. Nd4 {[%clk 0:01:40]}  Qf6 {[%clk 0:02:25]} 17. Be3 {[%clk 0:01:40]}  Nf4 {[%clk 0:02:04]} 18. f3 {[%clk 0:01:29]}  Bc8 {[%clk 0:01:51]} 19. Rad1 {[%clk 0:01:27]}  Qg5 {[%clk 0:01:38]} 20. Bxf4 {[%clk 0:01:23]}  Qxf4 {[%clk 0:01:37]} 21. Nd5 {[%clk 0:01:23]}  Qe5 {[%clk 0:01:27]} 22. Kh1 {[%clk 0:01:23]}  f5 {[%clk 0:01:26]} 23. Qc4 {[%clk 0:00:52]}  Kh8 {[%clk 0:01:13]} 24. Nxc7 {[%clk 0:00:52]}  fxe4 {[%clk 0:01:05]} 25. Nce6 {[%clk 0:00:42]}  Rf6 {[%clk 0:00:28]} 26. fxe4 {[%clk 0:00:39]}  Bxe6 {[%clk 0:00:23]} 27. Nxe6 {[%clk 0:00:30]}  Qxe6 {[%clk 0:00:20]} 28. c7 {[%clk 0:00:14]}  Qxc4 {[%clk 0:00:17]} 29. bxc4 {[%clk 0:00:13]}  Rc8 {[%clk 0:00:17]} 30. Rxf6 {[%clk 0:00:11]}  gxf6 {[%clk 0:00:17]} 31. Rxd6 {[%clk 0:00:11]}  Rxc7 {[%clk 0:00:17]} 32. Rxf6 {[%clk 0:00:11]}  Rxc4 {[%clk 0:00:16]} 33. g3 {[%clk 0:00:07]}  Rxe4 {[%clk 0:00:15]} 34. Rxh6+ {[%clk 0:00:07]}  Kg7 {[%clk 0:00:14]} 35. Rxa6 {[%clk 0:00:08]}  Bd4 {[%clk 0:00:13]} 36. Ra4 {[%clk 0:00:06]}  Re1+ {[%clk 0:00:10]} 37. Kg2 {[%clk 0:00:07]}  Rd1 {[%clk 0:00:11]} 38. Kf3 {[%clk 0:00:07]}  Bf6 {[%clk 0:00:10]} 39. h4 {[%clk 0:00:08]}  Rf1+ {[%clk 0:00:10]} 40. Kg4 {[%clk 0:00:08]}  Rg1 {[%clk 0:00:10]} 41. Ra7+ {[%clk 0:00:08]}  Kg6 {[%clk 0:00:10]} 42. Ra6 {[%clk 0:00:09]}  Kg7 {[%clk 0:00:09]} 43. h5 {[%clk 0:00:09]}  Be5 {[%clk 0:00:09]} 44. Ra7+ {[%clk 0:00:09]}  Kh6 {[%clk 0:00:09]} 45. Ra6+ {[%clk 0:00:10]}  Kg7 {[%clk 0:00:09]} 46. a4 {[%clk 0:00:10]}  Rxg3+ {[%clk 0:00:08]} 47. Kf5 {[%clk 0:00:10]}  Bb2 {[%clk 0:00:07]} 48. Ra7+ {[%clk 0:00:10]}  Kh6 {[%clk 0:00:07]} 49. Ra8 {[%clk 0:00:11]}  Rg5+ {[%clk 0:00:06]} 50. Kf4 {[%clk 0:00:11]}  Rxh5 {[%clk 0:00:07]} 51. a5 {[%clk 0:00:11]}  Bc1+ {[%clk 0:00:06]} 52. Ke4 {[%clk 0:00:11]}  Rh4+ {[%clk 0:00:05]} 53. Kd5 {[%clk 0:00:11]}  Rh5+ {[%clk 0:00:05]} 54. Kc6 {[%clk 0:00:11]}  Bd2 {[%clk 0:00:05]} 55. a6 {[%clk 0:00:09]}  Ra5 {[%clk 0:00:05]} 56. Kb6 {[%clk 0:00:08]}  Ra2 {[%clk 0:00:04]} 57. Re8 {[%clk 0:00:07]}  Kg5 {[%clk 0:00:04]} 58. a7 {[%clk 0:00:07]}  Rxa7 {[%clk 0:00:03]} 59. Kxa7 {[%clk 0:00:07]}  Kf4 {[%clk 0:00:03]} 60. Kb7 {[%clk 0:00:08]}  Kg3 {[%clk 0:00:03]} 61. Kc6 {[%clk 0:00:09]}  Bf4 {[%clk 0:00:02]} 62. Kd5 {[%clk 0:00:09]}  Kh2 {[%clk 0:00:02]} 63. Rg8 {[%clk 0:00:10]} 1-0


[Site "https://www.chess.com"]

[Event "Titled Tuesday Blitz April 11 Early 2023"]
[White "Sanchez, Robert"]
[Black "Bochnicka, Vladimir"]
[WhiteFideId "2034360"]
[BlackFideId "14943450"]
[WhiteElo "2006"]
[BlackElo "2094"]
[Result "0-1"]
[Round "02"]
[TimeControl "180+2"]
[Date "2023.04.11"]
[WhiteClock "0:00:09"]
[BlackClock "0:00:04"]

1. Nf3 {[%clk 0:03:00]}  c5 {[%clk 0:02:55]} 2. e3 {[%clk 0:03:01]}  Nc6 {[%clk 0:02:55]} 3. b3 {[%clk 0:03:02]}  Nf6 {[%clk 0:02:54]} 4. Bb2 {[%clk 0:03:02]}  d6 {[%clk 0:02:55]} 5. d4 {[%clk 0:03:03]}  Bg4 {[%clk 0:02:46]} 6. Be2 {[%clk 0:02:58]}  e6 {[%clk 0:02:45]} 7. Nbd2 {[%clk 0:02:53]}  Be7 {[%clk 0:02:45]} 8. h3 {[%clk 0:02:53]}  Bh5 {[%clk 0:02:44]} 9. O-O {[%clk 0:02:53]}  O-O {[%clk 0:02:44]} 10. c4 {[%clk 0:02:52]}  Bg6 {[%clk 0:02:44]} 11. Nh4 {[%clk 0:02:50]}  Rc8 {[%clk 0:02:42]} 12. Nxg6 {[%clk 0:02:51]}  hxg6 {[%clk 0:02:43]} 13. a3 {[%clk 0:02:43]}  d5 {[%clk 0:02:40]} 14. dxc5 {[%clk 0:02:41]}  Bxc5 {[%clk 0:02:40]} 15. b4 {[%clk 0:02:41]}  Be7 {[%clk 0:02:37]} 16. c5 {[%clk 0:02:39]}  e5 {[%clk 0:02:37]} 17. Nf3 {[%clk 0:02:35]}  e4 {[%clk 0:02:22]} 18. Nd4 {[%clk 0:02:35]}  a5 {[%clk 0:02:13]} 19. b5 {[%clk 0:02:30]}  Ne5 {[%clk 0:02:12]} 20. Rc1 {[%clk 0:02:09]}  Bxc5 {[%clk 0:02:09]} 21. Rxc5 {[%clk 0:02:07]}  Rxc5 {[%clk 0:02:10]} 22. Nb3 {[%clk 0:02:08]}  Ned7 {[%clk 0:02:00]} 23. Nxc5 {[%clk 0:02:06]}  Nxc5 {[%clk 0:02:01]} 24. Qd4 {[%clk 0:01:55]}  b6 {[%clk 0:01:58]} 25. Rd1 {[%clk 0:01:52]}  Qc7 {[%clk 0:01:52]} 26. g4 {[%clk 0:01:41]}  Rc8 {[%clk 0:01:46]} 27. g5 {[%clk 0:01:41]}  Ne6 {[%clk 0:01:47]} 28. Qd2 {[%clk 0:01:33]}  Nxg5 {[%clk 0:01:34]} 29. Bxf6 {[%clk 0:01:33]}  gxf6 {[%clk 0:01:33]} 30. Qxd5 {[%clk 0:01:34]}  Nxh3+ {[%clk 0:01:28]} 31. Kg2 {[%clk 0:01:30]}  Ng5 {[%clk 0:01:29]} 32. Bg4 {[%clk 0:01:20]}  Rf8 {[%clk 0:01:18]} 33. Qc6 {[%clk 0:01:04]}  Qxc6 {[%clk 0:00:53]} 34. bxc6 {[%clk 0:01:05]}  f5 {[%clk 0:00:54]} 35. Be2 {[%clk 0:01:01]}  Rc8 {[%clk 0:00:54]} 36. Bb5 {[%clk 0:00:55]}  Kf8 {[%clk 0:00:52]} 37. Rd7 {[%clk 0:00:54]}  Ne6 {[%clk 0:00:49]} 38. Rb7 {[%clk 0:00:53]}  Nc7 {[%clk 0:00:35]} 39. a4 {[%clk 0:00:38]}  Nd5 {[%clk 0:00:27]} 40. Rd7 {[%clk 0:00:31]}  Nb4 {[%clk 0:00:15]} 41. Rb7 {[%clk 0:00:30]}  Nxc6 {[%clk 0:00:13]} 42. Rxb6 {[%clk 0:00:30]}  Ne5 {[%clk 0:00:10]} 43. Ra6 {[%clk 0:00:28]}  Kg7 {[%clk 0:00:10]} 44. Rxa5 {[%clk 0:00:29]}  Nf3 {[%clk 0:00:07]} 45. Be2 {[%clk 0:00:19]}  Ng5 {[%clk 0:00:04]} 46. Ra7 {[%clk 0:00:19]}  Kh6 {[%clk 0:00:04]} 47. a5 {[%clk 0:00:18]}  Rc3 {[%clk 0:00:03]} 48. a6 {[%clk 0:00:16]}  Ra3 {[%clk 0:00:04]} 49. Rc7 {[%clk 0:00:10]}  Nf3 {[%clk 0:00:03]} 50. Bxf3 {[%clk 0:00:09]}  exf3+ {[%clk 0:00:04]} 51. Kxf3 {[%clk 0:00:10]}  Rxa6 {[%clk 0:00:03]} 52. Rxf7 {[%clk 0:00:09]}  Kg5 {[%clk 0:00:04]} 0-1


[Site "https://www.chess.com"]

[Event "Titled Tuesday Blitz April 11 Early 2023"]
[White "Pniaczek, Marek"]
[Black "Aung Thant Zin"]
[WhiteFideId "21800421"]
[BlackFideId "13000063"]
[WhiteElo "2138"]
[BlackElo "2278"]
[Result "1-0"]
[Round "02"]
[TimeControl "180+2"]
[Date "2023.04.11"]
[WhiteClock "0:01:21"]
[BlackClock "0:00:21"]

1. e4 {[%clk 0:02:57]}  c5 {[%clk 0:01:17]} 2. Nf3 {[%clk 0:02:56]}  Nc6 {[%clk 0:01:17]} 3. d4 {[%clk 0:02:55]}  cxd4 {[%clk 0:01:18]} 4. Nxd4 {[%clk 0:02:56]}  Nf6 {[%clk 0:01:18]} 5. Nc3 {[%clk 0:02:56]}  d6 {[%clk 0:01:18]} 6. Bg5 {[%clk 0:02:56]}  e6 {[%clk 0:01:18]} 7. Qd3 {[%clk 0:02:55]}  a6 {[%clk 0:01:18]} 8. O-O-O {[%clk 0:02:37]}  Qc7 {[%clk 0:01:17]} 9. Nxc6 {[%clk 0:02:21]}  bxc6 {[%clk 0:01:15]} 10. Qg3 {[%clk 0:02:13]}  Be7 {[%clk 0:01:14]} 11. Bc4 {[%clk 0:01:52]}  Rb8 {[%clk 0:01:13]} 12. Bb3 {[%clk 0:01:52]}  e5 {[%clk 0:00:47]} 13. Rd3 {[%clk 0:01:32]}  h6 {[%clk 0:00:44]} 14. Bxf6 {[%clk 0:01:27]}  Bxf6 {[%clk 0:00:28]} 15. Rhd1 {[%clk 0:01:26]}  c5 {[%clk 0:00:21]} 16. Rxd6 {[%clk 0:01:21]} 1-0


[Site "https://www.chess.com"]